fUST/lending_fUST_20250523
["ID","MTS","AMOUNT","RATE_DAILY","PERIOD"]
[362024578,1747938640693,-3314.96,0.00020547,2]
[362024579,1747938640703,-430.0,0.00020547,2]
[362024580,1747938640712,-516.66,0.00020547,2]
[362024581,1747938640722,-572.41,0.00020547,2]
[362024582,1747938640731,-564.26,0.00020547,2]
[362024583,1747938640740,-1297.37510748,0.00020555,3]
[362024584,1747938640750,-500.0,0.00020697,2]
[362024585,1747938640760,-587.0,0.00020708,2]
[362024586,1747938640769,-500.0,0.00020724,2]
[362024588,1747938640779,-160.0,0.00020753,2]
[362024590,1747938640789,-1297.37510748,0.00020762,3]
[362024591,1747938640799,-510.0,0.00020772,2]
[362024593,1747938640810,-430.0,0.00020772,2]
[362024595,1747938640820,-613.41,0.00020772,2]
[362024597,1747938640830,-521.56,0.00020772,2]
[362024599,1747938640840,-430.0,0.00020772,2]
[362024601,1747938640850,-430.0,0.00020772,2]
[362024602,1747938640859,-430.0,0.00020772,2]
[362024604,1747938640868,-430.0,0.00020772,2]
[362024606,1747938640879,-500.0,0.00020772,2]
[362024608,1747938640889,-430.0,0.00020772,2]
[362024610,1747938640898,-533.88,0.00020772,2]
[362024611,1747938640908,-430.0,0.00020772,2]
[362024612,1747938640918,-1038.14,0.00020772,2]
[362024613,1747938640928,-486.91,0.00020772,2]
[362024614,1747938640938,-430.0,0.00020772,2]
[362024615,1747938640948,-1108.09,0.00020772,2]
[362024616,1747938640958,-430.0,0.00020772,2]
[362024617,1747938640968,-476.75,0.00020772,2]
[362024618,1747938640978,-549.04,0.00020772,2]
[362024619,1747938640987,-430.0,0.00020772,2]
[362024620,1747938641000,-922.95,0.00020772,2]
[362024621,1747938641011,-430.0,0.00020772,2]
[362024622,1747938641022,-1576.53,0.00020772,2]
[362024623,1747938641032,-430.0,0.00020772,2]
[362024624,1747938641041,-432.68,0.00020772,2]
[362024625,1747938641052,-597.94,0.00020772,2]
[362024626,1747938641062,-1589.74,0.00020772,2]
[362024627,1747938641073,-430.0,0.00020772,2]
[362024628,1747938641083,-1067.49,0.00020772,2]
[362024629,1747938641093,-430.0,0.00020772,2]
[362024630,1747938641103,-677.05,0.00020772,2]
[362024631,1747938641114,-2373.35,0.00020772,2]
[362024632,1747938641124,-577.6,0.00020772,2]
[362024633,1747938641134,-430.0,0.00020772,2]
[362024634,1747938641144,-430.0,0.00020772,2]
[362024635,1747938641154,-1145.41,0.00020772,2]
[362024636,1747938641163,-430.0,0.00020772,2]
[362024637,1747938641175,-1524.66,0.00020772,2]
[362024638,1747938641185,-430.0,0.00020772,2]
[362024639,1747938641195,-812.43,0.00020772,2]
[362024640,1747938641206,-188.89,0.00020772,2]
[362024641,1747938641216,-557.38,0.00020772,2]
[362024642,1747938641227,-1282.81,0.00020772,2]
[362024643,1747938641237,-687.32,0.00020772,2]
[362024644,1747938641247,-430.0,0.00020772,2]
[362024645,1747938641257,-447.61,0.00020772,2]
[362024646,1747938641268,-938.74,0.00020772,2]
[362024647,1747938641279,-200.7,0.00020772,2]
[362024648,1747938641289,-430.0,0.00020773,2]
[362024649,1747938641300,-430.0,0.00020773,2]
[362024650,1747938641311,-430.0,0.00020773,2]
[362024651,1747938641321,-492.65667206,0.00020773,2]
[362024652,1747938641331,-430.0,0.00020773,2]
[362024653,1747938641341,-430.0,0.00020773,2]
[362024654,1747938641351,-217.08,0.00020773,2]
[362024655,1747938641360,-430.0,0.00020773,2]
[362024656,1747938641371,-812.63,0.00020773,2]
[362024657,1747938641381,-430.0,0.00020773,2]
[362024658,1747938641396,-853.64,0.00020774,2]
[362024659,1747938641406,-654.0,0.00020774,2]
[362024660,1747938641416,-430.0,0.00020774,2]
[362024661,1747938641428,-430.0,0.00020774,2]
[362024662,1747938641438,-510.0,0.00020774,2]
[362024663,1747938641448,-430.0,0.00020821,2]
[362024664,1747938641457,-854.93,0.00020821,2]
[362024665,1747938641469,-1150.13,0.00020821,2]
[362024666,1747938641479,-1427.39,0.00020821,2]
[362024667,1747938641489,-2842.71,0.00020821,2]
[362024668,1747938641498,-467.16,0.00020821,2]
[362024669,1747938641508,-430.0,0.00020821,2]
[362024670,1747938641518,-918.76,0.00020821,2]
[362024671,1747938641527,-448.23,0.00020821,2]
[362024672,1747938641537,-722.25,0.00020821,2]
[362024673,1747938641547,-430.0,0.00020821,2]
[362024674,1747938641559,-430.0,0.00020821,2]
[362024675,1747938641569,-1047.05,0.00020821,2]
[362024676,1747938641579,-519.69,0.00020821,2]
[362024677,1747938641589,-646.58,0.00020821,2]
[362024678,1747938641599,-430.0,0.00020821,2]
[362024679,1747938641609,-661.62,0.00020821,2]
[362024680,1747938641619,-5406.93,0.00020821,2]
[362024681,1747938641630,-430.0,0.00020821,2]
[362024682,1747938641640,-1662.13,0.00020821,2]
[362024683,1747938641650,-806.46,0.00020821,2]
[362024684,1747938641661,-430.0,0.00020821,2]
[362024685,1747938641671,-430.0,0.00020821,2]
[362024686,1747938641681,-1325.31,0.00020821,2]
[362024687,1747938641691,-3314.96,0.00020821,2]
[362024688,1747938641702,-430.0,0.00020821,2]
[362024689,1747938641712,-516.66,0.00020821,2]
[362024690,1747938641721,-572.41,0.00020821,2]
[362024691,1747938641732,-564.26,0.00020821,2]
[362024692,1747938641742,-1297.37510748,0.00020969,4]
[362024693,1747938641752,-430.0,0.00021046,2]
[362024694,1747938641762,-613.41,0.00021046,2]
[362024695,1747938641772,-521.56,0.00021046,2]
[362024696,1747938641782,-430.0,0.00021046,2]
[362024697,1747938641792,-430.0,0.00021046,2]
[362024698,1747938641802,-430.0,0.00021046,2]
[362024699,1747938641816,-430.0,0.00021046,2]
[362024700,1747938641826,-500.0,0.00021046,2]
[362024701,1747938641835,-430.0,0.00021046,2]
[362024702,1747938641846,-533.88,0.00021046,2]
[362024703,1747938641855,-430.0,0.00021046,2]
[362024704,1747938641865,-1038.14,0.00021046,2]
[362024705,1747938641875,-486.91,0.00021046,2]
[362024706,1747938641885,-430.0,0.00021046,2]
[362024707,1747938641895,-1108.09,0.00021046,2]
[362024708,1747938641915,-499.02889135,0.00021046,2]
[362024709,1747938641927,-476.75,0.00021046,2]
[362024710,1747938641937,-549.04,0.00021046,2]
[362024711,1747938641947,-430.0,0.00021046,2]
[362024712,1747938641957,-922.95,0.00021046,2]
[362024713,1747938641968,-430.0,0.00021046,2]
[362024714,1747938641978,-1576.53,0.00021046,2]
[362024715,1747938641988,-170.33168477,0.00021046,2]
[362024716,1747938641998,-432.68,0.00021046,2]
[362024717,1747938642008,-597.94,0.00021046,2]
[362024718,1747938642018,-1589.74,0.00021046,2]
[362024719,1747938642028,-430.0,0.00021046,2]
[362024720,1747938642038,-1067.49,0.00021046,2]
[362024721,1747938642048,-430.0,0.00021046,2]
[362024722,1747938642060,-677.05,0.00021046,2]
[362024723,1747938642070,-2373.35,0.00021046,2]
[362024724,1747938642080,-577.6,0.00021046,2]
[362024725,1747938642090,-430.0,0.00021046,2]
[362024726,1747938642100,-430.0,0.00021046,2]
[362024727,1747938642111,-1145.41,0.00021046,2]
[362024728,1747938642121,-459.43723629,0.00021046,2]
[362024729,1747938642131,-1524.66,0.00021046,2]
[362024730,1747938642141,-430.0,0.00021046,2]
[362024731,1747938642151,-812.43,0.00021046,2]
[362024732,1747938642160,-557.38,0.00021046,2]
[362024733,1747938642170,-1282.81,0.00021046,2]
[362024734,1747938642180,-687.32,0.00021046,2]
[362024735,1747938642190,-430.0,0.00021046,2]
[362024736,1747938642200,-447.61,0.00021046,2]
[362024737,1747938642210,-938.74,0.00021046,2]
[362024738,1747938642220,-430.0,0.00021047,2]
[362024739,1747938642231,-430.0,0.00021047,2]
[362024740,1747938642240,-430.0,0.00021047,2]
[362024741,1747938642250,-430.0,0.00021047,2]
[362024742,1747938642261,-430.0,0.00021047,2]
[362024743,1747938642271,-388.45,0.00021047,2]
[362024745,1747938642281,-812.63,0.00021047,2]
[362024747,1747938642291,-430.0,0.00021047,2]
[362024748,1747938642301,-853.64,0.00021048,2]
[362024749,1747938642312,-654.0,0.00021048,2]
[362024750,1747938642322,-430.0,0.00021048,2]
[362024751,1747938642332,-430.0,0.00021048,2]
[362024752,1747938642342,-207.4,0.0002108,2]
[362024753,1747938642353,-430.0,0.00021095,2]
[362024755,1747938642363,-854.93,0.00021095,2]
[362024757,1747938642372,-1427.39,0.00021095,2]
[362024759,1747938642384,-2842.71,0.00021095,2]
[362024762,1747938642397,-467.16,0.00021095,2]
[362024763,1747938642407,-430.0,0.00021095,2]
[362024765,1747938642417,-918.76,0.00021095,2]
[362024767,1747938642428,-448.23,0.00021095,2]
[362024768,1747938642438,-722.25,0.00021095,2]
[362024769,1747938642448,-430.0,0.00021095,2]
[362024770,1747938642458,-430.0,0.00021095,2]
[362024771,1747938642471,-1047.05,0.00021095,2]
[362024773,1747938642481,-519.69,0.00021095,2]
[362024774,1747938642491,-646.58,0.00021095,2]
[362024775,1747938642502,-430.0,0.00021095,2]
[362024776,1747938642512,-661.62,0.00021095,2]
[362024777,1747938642522,-5406.93,0.00021095,2]
[362024779,1747938642538,-430.0,0.00021095,2]
[362024780,1747938642549,-1662.13,0.00021095,2]
[362024781,1747938642559,-806.46,0.00021095,2]
[362024782,1747938642570,-430.0,0.00021095,2]
[362024783,1747938642580,-446.04345267,0.00021095,2]
[362024784,1747938642591,-1325.31,0.00021095,2]
[362024786,1747938642601,-3314.96,0.00021095,2]
[362024788,1747938642611,-430.0,0.00021095,2]
[362024789,1747938642622,-516.66,0.00021095,2]
[362024790,1747938642632,-572.41,0.00021095,2]
[362024791,1747938642642,-564.26,0.00021095,2]
[362024792,1747938642652,-1297.37510748,0.00021176,4]
[362024793,1747938642661,-1000.0,0.00021245,2]
[362024794,1747938642671,-1000.0,0.00021272,2]
[362024795,1747938642681,-430.0,0.0002132,2]
[362024796,1747938642691,-613.41,0.0002132,2]
[362024797,1747938642701,-521.56,0.0002132,2]
[362024798,1747938642712,-430.0,0.0002132,2]
[362024799,1747938642722,-430.0,0.0002132,2]
[362024800,1747938642732,-430.0,0.0002132,2]
[362024801,1747938642742,-430.0,0.0002132,2]
[362024802,1747938642752,-500.0,0.0002132,2]
[362024803,1747938642762,-430.0,0.0002132,2]
[362024804,1747938642771,-533.88,0.0002132,2]
[362024805,1747938642781,-430.0,0.0002132,2]
[362024806,1747938642791,-1038.14,0.0002132,2]
[362024807,1747938642801,-486.91,0.0002132,2]
[362024808,1747938642813,-430.0,0.0002132,2]
[362024809,1747938642823,-1108.09,0.0002132,2]
[362024810,1747938642833,-476.75,0.0002132,2]
[362024811,1747938642843,-549.04,0.0002132,2]
[362024812,1747938642852,-430.0,0.0002132,2]
[362024813,1747938642862,-922.95,0.0002132,2]
[362024814,1747938642873,-441.47254631,0.0002132,2]
[362024815,1747938642883,-1576.53,0.0002132,2]
[362024816,1747938642892,-432.68,0.0002132,2]
[362024817,1747938642902,-597.94,0.0002132,2]
[362024818,1747938642911,-1589.74,0.0002132,2]
[362024819,1747938642922,-430.0,0.0002132,2]
[362024820,1747938642933,-1067.49,0.0002132,2]
[362024821,1747938642942,-430.0,0.0002132,2]
[362024822,1747938642954,-677.05,0.0002132,2]
[362024823,1747938642964,-2373.35,0.0002132,2]
[362024824,1747938642974,-577.6,0.0002132,2]
[362024831,1747938643163,-430.0,0.0002132,2]
[362024832,1747938643174,-430.0,0.0002132,2]
[362024833,1747938643184,-1145.41,0.0002132,2]
[362024834,1747938643194,-1524.66,0.0002132,2]
[362024835,1747938643203,-470.0,0.0002132,2]
[362024836,1747938643213,-812.43,0.0002132,2]
[362024837,1747938643223,-557.38,0.0002132,2]
[362024838,1747938643232,-1282.81,0.0002132,2]
[362024839,1747938643243,-687.32,0.0002132,2]
[362024840,1747938643253,-430.0,0.0002132,2]
[362024841,1747938643262,-447.61,0.0002132,2]
[362024842,1747938643272,-938.74,0.0002132,2]
[362024843,1747938643283,-430.0,0.00021321,2]
[362024844,1747938643293,-186.20141754,0.00021321,2]
[362024845,1747938643303,-430.0,0.00021321,2]
[362024846,1747938643314,-430.0,0.00021321,2]
[362024847,1747938643323,-430.0,0.00021321,2]
[362024848,1747938643333,-812.63,0.00021321,2]
[362024849,1747938643343,-430.0,0.00021321,2]
[362024850,1747938643353,-853.64,0.00021322,2]
[362024851,1747938643362,-654.0,0.00021322,2]
[362024852,1747938643371,-430.0,0.00021322,2]
[362024853,1747938643383,-430.0,0.00021322,2]
[362024854,1747938643395,-430.0,0.00021369,2]
[362024855,1747938643405,-854.93,0.00021369,2]
[362024856,1747938643417,-1427.39,0.00021369,2]
[362024857,1747938643428,-2842.71,0.00021369,2]
[362024858,1747938643439,-467.16,0.00021369,2]
[362024859,1747938643448,-430.0,0.00021369,2]
[362024860,1747938643458,-918.76,0.00021369,2]
[362024861,1747938643469,-448.23,0.00021369,2]
[362024862,1747938643479,-722.25,0.00021369,2]
[362024863,1747938643489,-430.0,0.00021369,2]
[362024864,1747938643499,-430.0,0.00021369,2]
[362024865,1747938643509,-1047.05,0.00021369,2]
[362024866,1747938643519,-519.69,0.00021369,2]
[362024867,1747938643530,-646.58,0.00021369,2]
[362024868,1747938643540,-430.0,0.00021369,2]
[362024869,1747938643550,-661.62,0.00021369,2]
[362024870,1747938643563,-5406.93,0.00021369,2]
[362024871,1747938643574,-430.0,0.00021369,2]
[362024872,1747938643584,-1662.13,0.00021369,2]
[362024873,1747938643594,-806.46,0.00021369,2]
[362024874,1747938643604,-430.0,0.00021369,2]
[362024875,1747938643614,-1325.31,0.00021369,2]
[362024876,1747938643624,-3314.96,0.00021369,2]
[362024877,1747938643634,-430.0,0.00021369,2]
[362024878,1747938643643,-516.66,0.00021369,2]
[362024879,1747938643654,-572.41,0.00021369,2]
[362024880,1747938643664,-564.26,0.00021369,2]
[362024881,1747938643674,-1297.37510748,0.00021383,5]
[362024882,1747938643683,-595.95659499,0.00021417,2]
[362024883,1747938643694,-1300.0,0.00021543,2]
[362024884,1747938643704,-1297.37510748,0.0002159,5]
[362024885,1747938643713,-430.0,0.00021594,2]
[362024886,1747938643724,-613.41,0.00021594,2]
[362024887,1747938643733,-521.56,0.00021594,2]
[362024888,1747938643744,-430.0,0.00021594,2]
[362024889,1747938643754,-430.0,0.00021594,2]
[362024890,1747938643763,-430.0,0.00021594,2]
[362024891,1747938643773,-430.0,0.00021594,2]
[362024892,1747938643782,-500.0,0.00021594,2]
[362024893,1747938643792,-430.0,0.00021594,2]
[362024894,1747938643801,-533.88,0.00021594,2]
[362024895,1747938643812,-430.0,0.00021594,2]
[362024896,1747938643822,-1038.14,0.00021594,2]
[362024897,1747938643831,-486.91,0.00021594,2]
[362024898,1747938643840,-430.0,0.00021594,2]
[362024899,1747938643850,-1108.09,0.00021594,2]
[362024900,1747938643860,-476.75,0.00021594,2]
[362024901,1747938643870,-549.04,0.00021594,2]
[362024902,1747938643879,-430.0,0.00021594,2]
[362024903,1747938643889,-922.95,0.00021594,2]
[362024904,1747938643898,-1576.53,0.00021594,2]
[362024905,1747938643908,-432.68,0.00021594,2]
[362024906,1747938643918,-597.94,0.00021594,2]
[362024907,1747938643927,-1589.74,0.00021594,2]
[362024908,1747938643937,-430.0,0.00021594,2]
[362024909,1747938643947,-1067.49,0.00021594,2]
[362024910,1747938643957,-430.0,0.00021594,2]
[362024911,1747938643967,-677.05,0.00021594,2]
[362024912,1747938643977,-2373.35,0.00021594,2]
[362024913,1747938643986,-577.6,0.00021594,2]
[362024914,1747938643996,-430.0,0.00021594,2]
[362024915,1747938644006,-440.67301417,0.00021594,2]
[362024916,1747938644015,-1145.41,0.00021594,2]
[362024917,1747938644025,-1524.66,0.00021594,2]
[362024918,1747938644035,-812.43,0.00021594,2]
[362024919,1747938644045,-557.38,0.00021594,2]
[362024920,1747938644055,-1282.81,0.00021594,2]
[362024921,1747938644066,-687.32,0.00021594,2]
[362024922,1747938644076,-430.0,0.00021594,2]
[362024923,1747938644090,-447.61,0.00021594,2]
[362024924,1747938644100,-938.74,0.00021594,2]
[362024925,1747938644110,-236.89,0.00021595,2]
[362024926,1747938644120,-430.0,0.00021595,2]
[362024927,1747938644130,-430.0,0.00021595,2]
[362024928,1747938644139,-430.0,0.00021595,2]
[362024929,1747938644149,-812.63,0.00021595,2]
[362024930,1747938644159,-430.0,0.00021595,2]
[362024931,1747938644169,-853.64,0.00021596,2]
[362024932,1747938644179,-654.0,0.00021596,2]
[362024933,1747938644188,-183.84553562,0.00021596,2]
[362024934,1747938644198,-430.0,0.00021596,2]
[362024935,1747938644208,-430.0,0.00021643,2]
[362024936,1747938644218,-854.93,0.00021643,2]
[362024937,1747938644227,-1427.39,0.00021643,2]
[362024938,1747938644241,-2842.71,0.00021643,2]
[362024939,1747938644250,-467.16,0.00021643,2]
[362024940,1747938644260,-430.0,0.00021643,2]
[362024941,1747938644269,-918.76,0.00021643,2]
[362024942,1747938644280,-448.23,0.00021643,2]
[362024943,1747938644291,-722.25,0.00021643,2]
[362024944,1747938644301,-430.0,0.00021643,2]
[362024945,1747938644312,-430.0,0.00021643,2]
[362024946,1747938644322,-1047.05,0.00021643,2]
[362024947,1747938644333,-519.69,0.00021643,2]
[362024948,1747938644343,-646.58,0.00021643,2]
[362024949,1747938644352,-430.0,0.00021643,2]
[362024950,1747938644362,-661.62,0.00021643,2]
[362024951,1747938644371,-5406.93,0.00021643,2]
[362024952,1747938644382,-430.0,0.00021643,2]
[362024953,1747938644395,-1662.13,0.00021643,2]
[362024954,1747938644404,-806.46,0.00021643,2]
[362024955,1747938644414,-430.0,0.00021643,2]
[362024956,1747938644424,-1325.31,0.00021643,2]
[362024957,1747938644435,-3314.96,0.00021643,2]
[362024958,1747938644445,-430.0,0.00021643,2]
[362024959,1747938644455,-516.66,0.00021643,2]
[362024960,1747938644465,-572.41,0.00021643,2]
[362024961,1747938644475,-564.26,0.00021643,2]
[362024962,1747938644485,-250.0,0.00021646,2]
[362024963,1747938644496,-612.43,0.00021761,2]
[362024964,1747938644505,-1500.0,0.00021793,2]
[362024965,1747938644515,-1297.37510748,0.00021797,6]
[362024966,1747938644525,-1500.0,0.0002182,2]
[362024967,1747938644534,-430.0,0.00021868,2]
[362024968,1747938644544,-613.41,0.00021868,2]
[362024969,1747938644556,-521.56,0.00021868,2]
[362024970,1747938644566,-430.0,0.00021868,2]
[362024971,1747938644575,-430.0,0.00021868,2]
[362024972,1747938644585,-430.0,0.00021868,2]
[362024973,1747938644595,-500.0,0.00021868,2]
[362024974,1747938644606,-430.0,0.00021868,2]
[362024975,1747938644617,-430.0,0.00021868,2]
[362024976,1747938644628,-533.88,0.00021868,2]
[362024977,1747938644637,-232.1557699,0.00021868,2]
[362024978,1747938644648,-1038.14,0.00021868,2]
[362024979,1747938644657,-486.91,0.00021868,2]
[362024980,1747938644667,-430.0,0.00021868,2]
[362024981,1747938644677,-1108.09,0.00021868,2]
[362024982,1747938644688,-476.75,0.00021868,2]
[362024983,1747938644697,-549.04,0.00021868,2]
[362024984,1747938644708,-430.0,0.00021868,2]
[362024985,1747938644719,-922.95,0.00021868,2]
[362024986,1747938644728,-1576.53,0.00021868,2]
[362024987,1747938644738,-432.68,0.00021868,2]
[362024988,1747938644747,-597.94,0.00021868,2]
[362024989,1747938644758,-1589.74,0.00021868,2]
[362024990,1747938644768,-430.0,0.00021868,2]
[362024991,1747938644777,-1067.49,0.00021868,2]
[362024992,1747938644787,-430.0,0.00021868,2]
[362024993,1747938644797,-677.05,0.00021868,2]
[362024994,1747938644808,-2373.35,0.00021868,2]
[362024995,1747938644819,-577.6,0.00021868,2]
[362024996,1747938644828,-430.0,0.00021868,2]
[362024997,1747938644837,-1145.41,0.00021868,2]
[362024998,1747938644847,-1524.66,0.00021868,2]
[362024999,1747938644857,-812.43,0.00021868,2]
[362025000,1747938644866,-557.38,0.00021868,2]
[362025001,1747938644876,-1282.81,0.00021868,2]
[362025002,1747938644886,-687.32,0.00021868,2]
[362025003,1747938644896,-430.0,0.00021868,2]
[362025004,1747938644907,-447.61,0.00021868,2]
[362025005,1747938644916,-938.74,0.00021868,2]
[362025006,1747938644927,-430.0,0.00021869,2]
[362025007,1747938644937,-430.0,0.00021869,2]
[362025008,1747938644947,-430.0,0.00021869,2]
[362025009,1747938644958,-812.63,0.00021869,2]
[362025010,1747938644968,-430.0,0.00021869,2]
[362025011,1747938644978,-853.64,0.0002187,2]
[362025012,1747938644987,-654.0,0.0002187,2]
[362025013,1747938644996,-430.0,0.0002187,2]
[362025014,1747938645006,-1769.58610984,0.000219,2]
[362025015,1747938645017,-430.0,0.00021917,2]
[362025016,1747938645026,-430.0,0.00021917,2]
[362025017,1747938645036,-430.0,0.00021917,2]
[362025018,1747938645046,-430.0,0.00021917,2]
[362025019,1747938645056,-430.0,0.00021917,2]
[362025020,1747938645065,-430.0,0.00021917,2]
[362025021,1747938645075,-437.12991141,0.00021917,2]
[362025022,1747938645085,-194.84,0.00021917,2]
[362025023,1747938645094,-194.84,0.00021917,2]
[362025024,1747938645106,-194.84,0.00021917,2]
[362025025,1747938645117,-194.84,0.00021917,2]
[362025026,1747938645128,-194.84,0.00021917,2]
[362025027,1747938645138,-194.84,0.00021917,2]
[362025028,1747938645147,-194.84,0.00021917,2]
[362025029,1747938645157,-194.84,0.00021917,2]
[362025030,1747938645168,-430.0,0.00021917,2]
[362025031,1747938645179,-854.93,0.00021917,2]
[362025032,1747938645188,-1427.39,0.00021917,2]
[362025033,1747938645199,-2842.71,0.00021917,2]
[362025034,1747938645209,-467.16,0.00021917,2]
[362025035,1747938645219,-430.0,0.00021917,2]
[362025037,1747938645229,-918.76,0.00021917,2]
[362025038,1747938645239,-448.23,0.00021917,2]
[362025039,1747938645248,-722.25,0.00021917,2]
[362025040,1747938645259,-500.0,0.00021917,2]
[362025041,1747938645268,-500.0,0.00021917,2]
[362025042,1747938645277,-500.0,0.00021917,2]
[362025044,1747938645287,-500.0,0.00021917,2]
[362025045,1747938645296,-500.0,0.00021917,2]
[362025046,1747938645307,-500.0,0.00021917,2]
[362025047,1747938645316,-643.2719483,0.00021917,2]
[362025048,1747938645325,-430.0,0.00021917,2]
[362025049,1747938645335,-430.0,0.00021917,2]
[362025050,1747938645345,-1047.05,0.00021917,2]
[362025051,1747938645354,-519.69,0.00021917,2]
[362025052,1747938645364,-646.58,0.00021917,2]
[362025053,1747938645374,-430.0,0.00021917,2]
[362025054,1747938645383,-661.62,0.00021917,2]
[362025055,1747938645395,-5406.93,0.00021917,2]
[362025056,1747938645405,-430.0,0.00021917,2]
[362025057,1747938645415,-1662.13,0.00021917,2]
[362025058,1747938645425,-806.46,0.00021917,2]
[362025059,1747938645436,-430.0,0.00021917,2]
[362025060,1747938645447,-1325.31,0.00021917,2]
[362025062,1747938645458,-3314.96,0.00021917,2]
[362025064,1747938645467,-430.0,0.00021917,2]
[362025065,1747938645479,-516.66,0.00021917,2]
[362025066,1747938645489,-572.41,0.00021917,2]
[362025067,1747938645499,-564.26,0.00021917,2]
[362025069,1747938645508,-587.0,0.0002192,2]
[362025071,1747938645518,-500.0,0.00022,2]
[362025073,1747938645528,-500.0,0.00022,2]
[362025075,1747938645538,-349.72319525,0.00022,2]
[362025077,1747938645548,-1297.37510748,0.00022003,6]
[362025079,1747938645560,-160.0,0.00022017,2]
[362025081,1747938645569,-160.0,0.00022017,2]
[362025083,1747938645580,-422.78357425,0.00022017,2]
[362025085,1747938645590,-212.4501065,0.00022017,2]
[362025087,1747938645600,-894.64583333,0.00022017,2]
[362025089,1747938645610,-160.0,0.00022017,2]
[362025091,1747938645620,-212.4501065,0.00022059,7]
[362025092,1747938645629,-176.58861794,0.00022074,3]
[362025093,1747938645639,-174.66728507,0.00022142,2]
[362025094,1747938645648,-613.41,0.00022142,2]
[362025095,1747938645657,-521.56,0.00022142,2]
[362025096,1747938645667,-430.0,0.00022142,2]
[362025097,1747938645676,-430.0,0.00022142,2]
[362025098,1747938645686,-430.0,0.00022142,2]
[362025099,1747938645695,-500.0,0.00022142,2]
[362025100,1747938645705,-430.0,0.00022142,2]
[362025101,1747938645715,-430.0,0.00022142,2]
[362025102,1747938645724,-533.88,0.00022142,2]
[362025103,1747938645734,-1038.14,0.00022142,2]
[362025104,1747938645743,-486.91,0.00022142,2]
[362025105,1747938645755,-430.0,0.00022142,2]
[362025106,1747938645765,-1108.09,0.00022142,2]
[362025107,1747938645774,-476.75,0.00022142,2]
[362025108,1747938645783,-549.04,0.00022142,2]
[362025110,1747938645793,-430.0,0.00022142,2]
[362025111,1747938645803,-922.95,0.00022142,2]
[362025113,1747938645814,-1576.53,0.00022142,2]
[362025115,1747938645823,-432.68,0.00022142,2]
[362025117,1747938645834,-597.94,0.00022142,2]
[362025119,1747938645844,-1589.74,0.00022142,2]
[362025121,1747938645854,-430.0,0.00022142,2]
[362025124,1747938645867,-1067.49,0.00022142,2]
[362025126,1747938645877,-430.0,0.00022142,2]
[362025128,1747938645887,-677.05,0.00022142,2]
[362025130,1747938645896,-2373.35,0.00022142,2]
[362025132,1747938645906,-577.6,0.00022142,2]
[362025134,1747938645917,-430.0,0.00022142,2]
[362025136,1747938645926,-1145.41,0.00022142,2]
[362025138,1747938645938,-1524.66,0.00022142,2]